[Event "Early-Titled-Tuesday-Blitz-October-24-2023"]
[Site "Chess.com"]
[Date "2023.10.24"]
[Round "3"]
[White "djano"]
[Black "GHANDEEVAM2003"]
[Result "0-1"]
[WhiteElo "2669"]
[BlackElo "3024"]
[TimeControl "180+1"]
[EndTime "8:27:54 PDT"]
[Termination "GHANDEEVAM2003 won by resignation"]

1. e4 {[%clk 0:03:00.9]} 1... g6 {[%clk 0:02:58.7]} 2. Nc3 {[%clk 0:03:00.2]}
2... Bg7 {[%clk 0:02:59]} 3. Bc4 {[%clk 0:03:00.8]} 3... c6 {[%clk 0:02:57.9]}
4. d4 {[%clk 0:02:55.5]} 4... b5 {[%clk 0:02:57.3]} 5. Bb3 {[%clk 0:02:55.6]}
5... a5 {[%clk 0:02:57.3]} 6. a3 {[%clk 0:02:45.7]} 6... e6 {[%clk 0:02:53.6]}
7. h4 {[%clk 0:02:44.8]} 7... d5 {[%clk 0:02:52.7]} 8. h5 {[%clk 0:02:35.9]}
8... Nd7 {[%clk 0:02:32.7]} 9. Nf3 {[%clk 0:02:25.7]} 9... Ba6 {[%clk
0:02:25.5]} 10. Bg5 {[%clk 0:02:09.7]} 10... Ne7 {[%clk 0:02:17.8]} 11. exd5
{[%clk 0:02:00.7]} 11... cxd5 {[%clk 0:02:13.7]} 12. Qd2 {[%clk 0:01:33.4]}
12... f6 {[%clk 0:01:56.9]} 13. Be3 {[%clk 0:01:22.8]} 13... Kf7 {[%clk
0:01:57]} 14. g4 {[%clk 0:01:11.3]} 14... Qc7 {[%clk 0:01:50.9]} 15. Ne2 {[%clk
0:01:00.1]} 15... Rhc8 {[%clk 0:01:39.4]} 16. c3 {[%clk 0:00:58.2]} 16... b4
{[%clk 0:01:39.1]} 17. hxg6+ {[%clk 0:00:50.1]} 17... hxg6 {[%clk 0:01:38.3]}
18. axb4 {[%clk 0:00:37.5]} 18... axb4 {[%clk 0:01:39.2]} 19. Rc1 {[%clk
0:00:37.9]} 19... bxc3 {[%clk 0:01:35]} 20. Rxc3 {[%clk 0:00:35.9]} 20... Qb7
{[%clk 0:01:21.8]} 21. Bc2 {[%clk 0:00:28.6]} 21... Rxc3 {[%clk 0:01:18.4]} 22.
bxc3 {[%clk 0:00:28]} 22... Bc4 {[%clk 0:01:16.3]} 23. O-O {[%clk 0:00:16.7]}
23... Ra2 {[%clk 0:01:14.1]} 24. Rc1 {[%clk 0:00:13.6]} 24... Qb2 {[%clk
0:01:02.8]} 25. Nf4 {[%clk 0:00:12.7]} 25... e5 {[%clk 0:00:38.5]} 26. dxe5
{[%clk 0:00:10.9]} 26... Nxe5 {[%clk 0:00:37.3]} 27. Nxe5+ {[%clk 0:00:08]}
27... fxe5 {[%clk 0:00:38.2]} 28. Nd3 {[%clk 0:00:07.2]} 28... Bxd3 {[%clk
0:00:31.9]} 29. Qxd3 {[%clk 0:00:07.2]} 29... e4 {[%clk 0:00:32.4]} 30. Qd1
{[%clk 0:00:03.1]} 30... Bxc3 {[%clk 0:00:25.3]} 31. Bb3 {[%clk 0:00:03.4]}
31... Ra5 {[%clk 0:00:25.7]} 32. Rb1 {[%clk 0:00:03.4]} 32... Qa3 {[%clk
0:00:24.3]} 33. Bc1 {[%clk 0:00:02.9]} 33... Qd6 {[%clk 0:00:22.6]} 34. Bd2
{[%clk 0:00:03.2]} 34... Bxd2 {[%clk 0:00:20.8]} 35. Qxd2 {[%clk 0:00:03.6]}
35... Rb5 {[%clk 0:00:21.5]} 36. Qa2 {[%clk 0:00:03.1]} 36... Kg7 {[%clk
0:00:20.6]} 37. Rd1 {[%clk 0:00:03.3]} 37... Qe5 {[%clk 0:00:19.5]} 38. Qa4
{[%clk 0:00:03.3]} 38... Rb6 {[%clk 0:00:19.2]} 39. Bc2 {[%clk 0:00:02.6]} 39...
Rf6 {[%clk 0:00:19.4]} 40. Qa7 {[%clk 0:00:02.2]} 40... Rf7 {[%clk 0:00:18.8]}
41. Qe3 {[%clk 0:00:02.3]} 41... g5 {[%clk 0:00:18.3]} 42. Qd4 {[%clk
0:00:02.8]} 42... Qxd4 {[%clk 0:00:18.4]} 43. Rxd4 {[%clk 0:00:03.4]} 43... Kf6
{[%clk 0:00:19.3]} 44. Bb3 {[%clk 0:00:03.9]} 44... Ke5 {[%clk 0:00:19.7]} 45.
Rd2 {[%clk 0:00:04.5]} 45... Rf4 {[%clk 0:00:20.3]} 46. Kf1 {[%clk 0:00:03.8]}
46... Rxg4 {[%clk 0:00:20.4]} 47. Ke2 {[%clk 0:00:04.4]} 47... Rf4 {[%clk
0:00:20.6]} 48. Ra2 {[%clk 0:00:04.2]} 48... Nf5 {[%clk 0:00:20.6]} 49. Ra8
{[%clk 0:00:04]} 49... Nd4+ {[%clk 0:00:21.1]} 50. Ke3 {[%clk 0:00:04.4]} 50...
Rf3+ {[%clk 0:00:21.5]} 0-1

[Event "Early-Titled-Tuesday-Blitz-October-24-2023"]
[Site "Chess.com"]
[Date "2023.10.24"]
[Round "3"]
[White "Casper"]
[Black "PositionalPanther"]
[Result "1-0"]
[WhiteElo "2446"]
[BlackElo "2588"]
[TimeControl "180+1"]
[EndTime "8:27:54 PDT"]
[Termination "Casper won by resignation"]

1. e4 {[%clk 0:03:00.9]} 1... e6 {[%clk 0:03:00.9]} 2. d4 {[%clk 0:03:00.1]}
2... d5 {[%clk 0:02:58.2]} 3. Qe2 {[%clk 0:02:59.1]} 3... Nf6 {[%clk 0:02:51.5]}
4. exd5 {[%clk 0:02:58.8]} 4... Qxd5 {[%clk 0:02:48.4]} 5. Nc3 {[%clk 0:02:59]}
5... Bb4 {[%clk 0:02:47.8]} 6. Bd2 {[%clk 0:02:56.3]} 6... Qxd4 {[%clk 0:02:23]}
7. O-O-O {[%clk 0:02:55.1]} 7... Bxc3 {[%clk 0:02:19.9]} 8. Bxc3 {[%clk
0:02:55.1]} 8... Qf4+ {[%clk 0:02:15.3]} 9. Kb1 {[%clk 0:02:54.3]} 9... Nc6
{[%clk 0:01:43.5]} 10. Nf3 {[%clk 0:01:48.6]} 10... Bd7 {[%clk 0:01:33.9]} 11.
Ne5 {[%clk 0:01:32.6]} 11... O-O-O {[%clk 0:01:26.5]} 12. Nxf7 {[%clk
0:01:30.4]} 12... Nd5 {[%clk 0:01:22.2]} 13. Nxh8 {[%clk 0:01:18.6]} 13... Nxc3+
{[%clk 0:01:21.9]} 14. bxc3 {[%clk 0:01:19.5]} 14... Rxh8 {[%clk 0:01:13.9]} 15.
Qd2 {[%clk 0:01:16.2]} 15... Qf7 {[%clk 0:01:12.6]} 16. Bc4 {[%clk 0:01:11.4]}
16... Na5 {[%clk 0:01:06.2]} 17. Bb3 {[%clk 0:01:07.6]} 17... c5 {[%clk
0:01:05.8]} 18. Qd6 {[%clk 0:00:59.2]} 18... b6 {[%clk 0:00:44.5]} 19. Qe5
{[%clk 0:00:24.2]} 19... c4 {[%clk 0:00:40.5]} 20. Bxc4 {[%clk 0:00:24.1]} 20...
Nxc4 {[%clk 0:00:39.4]} 21. Qe4 {[%clk 0:00:24.6]} 21... Na3+ {[%clk 0:00:16.7]}
22. Kb2 {[%clk 0:00:24.7]} 22... Kb8 {[%clk 0:00:14.9]} 23. Kxa3 {[%clk
0:00:20.6]} 23... Rc8 {[%clk 0:00:15.4]} 24. Qe5+ {[%clk 0:00:19.5]} 24... Kb7
{[%clk 0:00:14.6]} 25. Rd6 {[%clk 0:00:18.8]} 25... Rc5 {[%clk 0:00:13.5]} 26.
Qe4+ {[%clk 0:00:16.9]} 26... Bc6 {[%clk 0:00:13.4]} 27. Qxe6 {[%clk 0:00:16.3]}
27... Ra5+ {[%clk 0:00:11.4]} 28. Kb2 {[%clk 0:00:15.9]} 28... Qc7 {[%clk
0:00:03]} 29. Rhd1 {[%clk 0:00:14.1]} 29... Rc5 {[%clk 0:00:03.2]} 30. Rd8
{[%clk 0:00:12.2]} 30... Ka6 {[%clk 0:00:03]} 31. Qb3 {[%clk 0:00:10.5]} 31...
Ra5 {[%clk 0:00:01.4]} 32. Qg8 {[%clk 0:00:09.9]} 32... Qe5 {[%clk 0:00:01.3]}
33. R8d4 {[%clk 0:00:08.5]} 33... Rb5+ {[%clk 0:00:01.3]} 34. Rb4 {[%clk
0:00:09]} 34... Ra5 {[%clk 0:00:02.2]} 35. Qc8+ {[%clk 0:00:08.9]} 35... Bb7
{[%clk 0:00:02.2]} 36. Qc4+ {[%clk 0:00:09.6]} 36... b5 {[%clk 0:00:02.8]} 37.
Qd4 {[%clk 0:00:09.4]} 37... Qd5 {[%clk 0:00:03]} 38. Qxd5 {[%clk 0:00:09.7]}
38... Bxd5 {[%clk 0:00:03.7]} 39. Rxd5 {[%clk 0:00:10.4]} 39... Kb6 {[%clk
0:00:04.6]} 40. Rd6+ {[%clk 0:00:10.9]} 40... Kc5 {[%clk 0:00:04.9]} 41. Rd2
{[%clk 0:00:11.2]} 41... a6 {[%clk 0:00:05.8]} 42. Rd8 {[%clk 0:00:11.5]} 42...
g5 {[%clk 0:00:06.5]} 43. Rc8+ {[%clk 0:00:12.1]} 43... Kb6 {[%clk 0:00:07.4]}
44. Rh8 {[%clk 0:00:13]} 44... Kb7 {[%clk 0:00:08.1]} 45. Rxh7+ {[%clk
0:00:13.6]} 45... Kc6 {[%clk 0:00:09]} 46. Rg7 {[%clk 0:00:14.1]} 46... Kc5
{[%clk 0:00:09.9]} 47. Rxg5+ {[%clk 0:00:14.6]} 47... Kc6 {[%clk 0:00:10.5]} 48.
Rh4 {[%clk 0:00:15.3]} 48... Kb6 {[%clk 0:00:11.2]} 49. Rh6+ {[%clk 0:00:15.9]}
49... Kc7 {[%clk 0:00:11.8]} 50. Rg7+ {[%clk 0:00:16.7]} 50... Kd8 {[%clk
0:00:12.5]} 51. Rgg6 {[%clk 0:00:16.3]} 51... Ke7 {[%clk 0:00:11.9]} 52. Rxa6
{[%clk 0:00:16.6]} 52... b4 {[%clk 0:00:11.4]} 53. Rxa5 {[%clk 0:00:16.2]} 53...
bxc3+ {[%clk 0:00:12.3]} 54. Kxc3 {[%clk 0:00:16.2]} 54... Kf8 {[%clk
0:00:12.7]} 55. Rah5 {[%clk 0:00:16.6]} 55... Kg7 {[%clk 0:00:13.6]} 56. a4
{[%clk 0:00:17.2]} 1-0

[Event "Early-Titled-Tuesday-Blitz-October-24-2023"]
[Site "Chess.com"]
[Date "2023.10.24"]
[Round "3"]
[White "chessfatbear"]
[Black "ErikRonka"]
[Result "1-0"]
[WhiteElo "2810"]
[BlackElo "2516"]
[TimeControl "180+1"]
[EndTime "8:27:56 PDT"]
[Termination "chessfatbear won by resignation"]

1. Nf3 {[%clk 0:03:00.9]} 1... d5 {[%clk 0:03:00.2]} 2. b3 {[%clk 0:03:01.8]}
2... c6 {[%clk 0:02:56.6]} 3. Bb2 {[%clk 0:03:01.9]} 3... Bg4 {[%clk 0:02:57.3]}
4. h3 {[%clk 0:03:01]} 4... Bxf3 {[%clk 0:02:47.9]} 5. exf3 {[%clk 0:03:01.9]}
5... Nd7 {[%clk 0:02:48.6]} 6. f4 {[%clk 0:02:49.5]} 6... Ngf6 {[%clk
0:02:45.7]} 7. g3 {[%clk 0:02:47.4]} 7... g6 {[%clk 0:02:39.6]} 8. Bg2 {[%clk
0:02:44.3]} 8... Bg7 {[%clk 0:02:40]} 9. O-O {[%clk 0:02:44.5]} 9... O-O {[%clk
0:02:40.7]} 10. d4 {[%clk 0:02:42.5]} 10... e6 {[%clk 0:02:28.2]} 11. Nd2 {[%clk
0:02:41.8]} 11... a5 {[%clk 0:02:23.1]} 12. a4 {[%clk 0:02:41.3]} 12... b5
{[%clk 0:01:59.2]} 13. axb5 {[%clk 0:02:23.1]} 13... cxb5 {[%clk 0:02:00.1]} 14.
c4 {[%clk 0:02:23.9]} 14... Qb6 {[%clk 0:00:55.5]} 15. c5 {[%clk 0:02:18.4]}
15... Qc7 {[%clk 0:00:56]} 16. Qe2 {[%clk 0:02:14.6]} 16... b4 {[%clk
0:00:50.2]} 17. Ra2 {[%clk 0:02:09.8]} 17... Nb8 {[%clk 0:00:49.8]} 18. Nf3
{[%clk 0:01:58.9]} 18... Nc6 {[%clk 0:00:48.5]} 19. Ne5 {[%clk 0:01:59]} 19...
Nd7 {[%clk 0:00:46.1]} 20. Nxc6 {[%clk 0:01:54.3]} 20... Qxc6 {[%clk 0:00:45.8]}
21. Rfa1 {[%clk 0:01:55.1]} 21... Qc7 {[%clk 0:00:32.3]} 22. h4 {[%clk
0:01:30.3]} 22... Nb8 {[%clk 0:00:30]} 23. h5 {[%clk 0:01:20]} 23... Nc6 {[%clk
0:00:28.4]} 24. Qd3 {[%clk 0:01:15.9]} 24... Ra7 {[%clk 0:00:22.8]} 25. Bf3
{[%clk 0:01:14.2]} 25... Rfa8 {[%clk 0:00:21.7]} 26. Kg2 {[%clk 0:01:13.7]}
26... Ne7 {[%clk 0:00:17.5]} 27. Bc1 {[%clk 0:01:06]} 27... Nf5 {[%clk
0:00:15.5]} 28. Be3 {[%clk 0:01:05.5]} 28... Qc6 {[%clk 0:00:13.2]} 29. Ra4
{[%clk 0:01:03.6]} 29... Bf6 {[%clk 0:00:10.9]} 30. Rh1 {[%clk 0:01:01.4]} 30...
Kg7 {[%clk 0:00:10.6]} 31. Bg4 {[%clk 0:00:59.5]} 31... Nxe3+ {[%clk 0:00:02.9]}
32. fxe3 {[%clk 0:01:00.4]} 32... Kf8 {[%clk 0:00:03.5]} 33. Be2 {[%clk
0:00:57.1]} 33... Ke7 {[%clk 0:00:04.1]} 34. g4 {[%clk 0:00:56.2]} 34... g5
{[%clk 0:00:03.6]} 35. h6 {[%clk 0:00:46.5]} 35... Rg8 {[%clk 0:00:03.5]} 36.
Qxh7 {[%clk 0:00:44.8]} 36... Raa8 {[%clk 0:00:02.8]} 37. Qd3 {[%clk 0:00:42.8]}
37... gxf4 {[%clk 0:00:02.7]} 38. exf4 {[%clk 0:00:43.6]} 38... Kd7 {[%clk
0:00:02.8]} 39. g5 {[%clk 0:00:38.9]} 39... Be7 {[%clk 0:00:02.9]} 40. h7 {[%clk
0:00:38.6]} 40... Rh8 {[%clk 0:00:03.1]} 41. Qe3 {[%clk 0:00:32.4]} 41... Qc7
{[%clk 0:00:04]} 42. Bd3 {[%clk 0:00:31.4]} 42... f6 {[%clk 0:00:04.3]} 43. g6
{[%clk 0:00:30.5]} 43... f5 {[%clk 0:00:02.8]} 44. Bb5+ {[%clk 0:00:26.7]} 44...
Kc8 {[%clk 0:00:02.4]} 45. g7 {[%clk 0:00:27.3]} 45... Kb7 {[%clk 0:00:02.6]}
46. gxh8=Q {[%clk 0:00:26.8]} 46... Rxh8 {[%clk 0:00:03.5]} 47. Qxe6 {[%clk
0:00:26.8]} 47... Bd8 {[%clk 0:00:02.7]} 48. Qxd5+ {[%clk 0:00:24.8]} 48... Kb8
{[%clk 0:00:02.6]} 49. Qe5 {[%clk 0:00:25.1]} 1-0

[Event "Early-Titled-Tuesday-Blitz-October-24-2023"]
[Site "Chess.com"]
[Date "2023.10.24"]
[Round "3"]
[White "Zhigalko_Sergei"]
[Black "BardArtem"]
[Result "1-0"]
[WhiteElo "2955"]
[BlackElo "2699"]
[TimeControl "180+1"]
[EndTime "8:27:57 PDT"]
[Termination "Zhigalko_Sergei won by resignation"]

1. e4 {[%clk 0:03:00.9]} 1... e5 {[%clk 0:02:58.4]} 2. Nf3 {[%clk 0:03:01]} 2...
Nc6 {[%clk 0:02:56.8]} 3. Bc4 {[%clk 0:02:59]} 3... Bc5 {[%clk 0:02:56.1]} 4. d3
{[%clk 0:02:59.5]} 4... Nf6 {[%clk 0:02:55.6]} 5. O-O {[%clk 0:02:59.5]} 5...
O-O {[%clk 0:02:54.6]} 6. Nbd2 {[%clk 0:02:57.4]} 6... d6 {[%clk 0:02:50.3]} 7.
c3 {[%clk 0:02:57.5]} 7... a5 {[%clk 0:02:46.8]} 8. h3 {[%clk 0:02:55.6]} 8...
Ba7 {[%clk 0:02:41.7]} 9. Re1 {[%clk 0:02:54.6]} 9... Ne7 {[%clk 0:02:38.8]} 10.
Nf1 {[%clk 0:02:52.3]} 10... Ng6 {[%clk 0:02:38.6]} 11. Ng3 {[%clk 0:02:52.1]}
11... c6 {[%clk 0:02:34.9]} 12. Bb3 {[%clk 0:02:45.5]} 12... h6 {[%clk
0:02:29.1]} 13. d4 {[%clk 0:02:37.7]} 13... Re8 {[%clk 0:02:17.7]} 14. Be3
{[%clk 0:02:28]} 14... exd4 {[%clk 0:02:08.9]} 15. Bxd4 {[%clk 0:02:28]} 15...
Be6 {[%clk 0:01:54.5]} 16. Bc2 {[%clk 0:01:59]} 16... Bxd4 {[%clk 0:01:42.4]}
17. cxd4 {[%clk 0:01:42.4]} 17... Qb6 {[%clk 0:01:38.1]} 18. Qd3 {[%clk
0:01:23.9]} 18... Rad8 {[%clk 0:01:14.8]} 19. a3 {[%clk 0:01:13.1]} 19... c5
{[%clk 0:00:58.5]} 20. Ba4 {[%clk 0:01:02.3]} 20... Bd7 {[%clk 0:00:53.8]} 21.
Bxd7 {[%clk 0:00:57.2]} 21... Nxd7 {[%clk 0:00:54.7]} 22. Qd2 {[%clk 0:00:47.2]}
22... cxd4 {[%clk 0:00:50.5]} 23. Rad1 {[%clk 0:00:42.7]} 23... Nc5 {[%clk
0:00:48.6]} 24. Nxd4 {[%clk 0:00:33.3]} 24... Nb3 {[%clk 0:00:38]} 25. Nxb3
{[%clk 0:00:25.5]} 25... Qxb3 {[%clk 0:00:38.9]} 26. Nf5 {[%clk 0:00:24.5]}
26... Ne5 {[%clk 0:00:34.5]} 27. Re3 {[%clk 0:00:12.3]} 27... Qa4 {[%clk
0:00:23.3]} 28. Rg3 {[%clk 0:00:07.7]} 28... Ng6 {[%clk 0:00:23.7]} 29. Qd4
{[%clk 0:00:03]} 29... Qxd4 {[%clk 0:00:20.4]} 30. Rxd4 {[%clk 0:00:03.9]} 30...
d5 {[%clk 0:00:18.1]} 31. Rxd5 {[%clk 0:00:01.7]} 31... Rxd5 {[%clk 0:00:17.6]}
32. exd5 {[%clk 0:00:02.6]} 32... Re1+ {[%clk 0:00:18.3]} 33. Kh2 {[%clk
0:00:03.1]} 33... Re2 {[%clk 0:00:19.2]} 34. d6 {[%clk 0:00:01.9]} 34... Rd2
{[%clk 0:00:15.8]} 35. Rb3 {[%clk 0:00:01.9]} 35... Nf4 {[%clk 0:00:09.5]} 36.
Rxb7 {[%clk 0:00:02.1]} 36... Rxf2 {[%clk 0:00:09.9]} 37. Rb8+ {[%clk
0:00:01.7]} 37... Kh7 {[%clk 0:00:10.1]} 38. d7 {[%clk 0:00:01.9]} 38... Rxg2+
{[%clk 0:00:10]} 39. Kh1 {[%clk 0:00:02.3]} 39... Re2 {[%clk 0:00:02.5]} 40.
d8=Q {[%clk 0:00:02.7]} 40... Re1+ {[%clk 0:00:03]} 41. Kh2 {[%clk 0:00:02.8]}
41... Re2+ {[%clk 0:00:03.2]} 42. Kg1 {[%clk 0:00:03]} 42... Re1+ {[%clk
0:00:02.2]} 43. Kf2 {[%clk 0:00:02.9]} 43... Nd3+ {[%clk 0:00:01.9]} 44. Qxd3
{[%clk 0:00:02.4]} 44... Rd1 {[%clk 0:00:01.5]} 45. Qxd1 {[%clk 0:00:02.3]} 1-0

[Event "Early-Titled-Tuesday-Blitz-October-24-2023"]
[Site "Chess.com"]
[Date "2023.10.24"]
[Round "3"]
[White "CSB7"]
[Black "gau248"]
[Result "0-1"]
[WhiteElo "2725"]
[BlackElo "2598"]
[TimeControl "180+1"]
[EndTime "8:28:04 PDT"]
[Termination "gau248 won by resignation"]

1. d4 {[%clk 0:03:00.9]} 1... Nf6 {[%clk 0:02:57.7]} 2. c4 {[%clk 0:02:59.2]}
2... e6 {[%clk 0:02:57.7]} 3. g3 {[%clk 0:02:59]} 3... d5 {[%clk 0:02:53.9]} 4.
Bg2 {[%clk 0:02:57.1]} 4... Be7 {[%clk 0:02:42.1]} 5. Nf3 {[%clk 0:02:56.3]}
5... O-O {[%clk 0:02:42.4]} 6. O-O {[%clk 0:02:56]} 6... dxc4 {[%clk 0:02:42.8]}
7. Qc2 {[%clk 0:02:37.6]} 7... a6 {[%clk 0:02:30.2]} 8. Qxc4 {[%clk 0:02:36.9]}
8... b5 {[%clk 0:02:30.1]} 9. Qc2 {[%clk 0:02:36.9]} 9... Bb7 {[%clk 0:02:29.2]}
10. Bd2 {[%clk 0:02:37.4]} 10... Be4 {[%clk 0:02:26.5]} 11. Qc1 {[%clk
0:02:36.9]} 11... c6 {[%clk 0:02:26.3]} 12. a4 {[%clk 0:02:01.8]} 12... Ra7
{[%clk 0:02:22.9]} 13. Nc3 {[%clk 0:01:51.1]} 13... Bxf3 {[%clk 0:02:08.3]} 14.
Bxf3 {[%clk 0:01:50.6]} 14... Rd7 {[%clk 0:02:05.7]} 15. e3 {[%clk 0:01:44.8]}
15... b4 {[%clk 0:02:00.1]} 16. Ne4 {[%clk 0:01:40.1]} 16... Nxe4 {[%clk
0:02:00.1]} 17. Bxe4 {[%clk 0:01:41]} 17... c5 {[%clk 0:02:01]} 18. Rd1 {[%clk
0:01:22.4]} 18... cxd4 {[%clk 0:01:58.8]} 19. exd4 {[%clk 0:01:23.3]} 19... Rxd4
{[%clk 0:01:55.4]} 20. Be3 {[%clk 0:01:23.8]} 20... Rxd1+ {[%clk 0:01:52.6]} 21.
Qxd1 {[%clk 0:01:24.7]} 21... Nd7 {[%clk 0:01:40.9]} 22. a5 {[%clk 0:01:09.5]}
22... Nf6 {[%clk 0:01:38.6]} 23. Qxd8 {[%clk 0:01:08.7]} 23... Rxd8 {[%clk
0:01:39.5]} 24. Bb7 {[%clk 0:01:08.6]} 24... Nd5 {[%clk 0:01:31.2]} 25. Bd4
{[%clk 0:00:50.8]} 25... Nc7 {[%clk 0:01:29.8]} 26. Bb6 {[%clk 0:00:46.8]} 26...
Rb8 {[%clk 0:01:24.3]} 27. Bc6 {[%clk 0:00:18.7]} 27... Nd5 {[%clk 0:01:16.5]}
28. Bxd5 {[%clk 0:00:18.5]} 28... exd5 {[%clk 0:01:17.4]} 29. Rd1 {[%clk
0:00:18.7]} 29... Bf6 {[%clk 0:01:13.5]} 30. b3 {[%clk 0:00:18.7]} 30... d4
{[%clk 0:01:13.5]} 31. Kf1 {[%clk 0:00:18.9]} 31... g6 {[%clk 0:01:13]} 32. Ke2
{[%clk 0:00:18.2]} 32... Re8+ {[%clk 0:01:07.2]} 33. Kd3 {[%clk 0:00:14.6]}
33... Rc8 {[%clk 0:01:06.8]} 34. Ke2 {[%clk 0:00:11.4]} 34... Rc2+ {[%clk
0:00:55.9]} 35. Rd2 {[%clk 0:00:10.8]} 35... d3+ {[%clk 0:00:56.2]} 36. Kxd3
{[%clk 0:00:08.5]} 36... Rc3+ {[%clk 0:00:56.4]} 37. Ke2 {[%clk 0:00:09.1]}
37... Rxb3 {[%clk 0:00:56.5]} 38. Bc5 {[%clk 0:00:05.6]} 38... Rb1 {[%clk
0:00:45.3]} 39. Rd7 {[%clk 0:00:05.7]} 39... b3 {[%clk 0:00:41.5]} 40. Ra7
{[%clk 0:00:05.7]} 40... Kg7 {[%clk 0:00:39.6]} 41. Rb7 {[%clk 0:00:03.7]} 41...
b2 {[%clk 0:00:36.2]} 42. Ba3 {[%clk 0:00:04.3]} 42... Kh6 {[%clk 0:00:35.1]}
43. Kf3 {[%clk 0:00:02.8]} 43... Ra1 {[%clk 0:00:23.7]} 44. Bxb2 {[%clk
0:00:02]} 44... Rb1 {[%clk 0:00:24.1]} 45. Bxf6 {[%clk 0:00:01.5]} 45... Rxb7
{[%clk 0:00:23.4]} 46. Ke4 {[%clk 0:00:01.9]} 46... Rb5 {[%clk 0:00:23]} 47. Bc3
{[%clk 0:00:02.4]} 47... Rb3 {[%clk 0:00:22.9]} 48. Kd4 {[%clk 0:00:02.3]} 48...
Rb1 {[%clk 0:00:22.3]} 49. Kc5 {[%clk 0:00:02.2]} 49... Kg5 {[%clk 0:00:21.9]}
50. Bd2+ {[%clk 0:00:02.1]} 50... Kg4 {[%clk 0:00:21.8]} 51. h4 {[%clk
0:00:02.6]} 51... Kf3 {[%clk 0:00:21.4]} 52. Be3 {[%clk 0:00:02.5]} 52... Rb5+
{[%clk 0:00:21.4]} 53. Kd6 {[%clk 0:00:03.1]} 53... Rxa5 {[%clk 0:00:21.4]} 54.
Ke7 {[%clk 0:00:04]} 54... Rf5 {[%clk 0:00:21.6]} 55. Kf8 {[%clk 0:00:04.9]}
55... a5 {[%clk 0:00:20.6]} 56. Kg7 {[%clk 0:00:05.8]} 56... h5 {[%clk 0:00:21]}
0-1

[Event "Early-Titled-Tuesday-Blitz-October-24-2023"]
[Site "Chess.com"]
[Date "2023.10.24"]
[Round "3"]
[White "mary-sanna"]
[Black "SergioMoralesG"]
[Result "1-0"]
[WhiteElo "2213"]
[BlackElo "2393"]
[TimeControl "180+1"]
[EndTime "8:28:05 PDT"]
[Termination "mary-sanna won on time"]

1. d4 {[%clk 0:03:00]} 1... d5 {[%clk 0:02:59.4]} 2. c4 {[%clk 0:02:59.8]} 2...
c6 {[%clk 0:03:00]} 3. Nf3 {[%clk 0:02:59.5]} 3... Nf6 {[%clk 0:03:00.5]} 4. g3
{[%clk 0:02:59.7]} 4... Bf5 {[%clk 0:02:59.6]} 5. Nh4 {[%clk 0:02:51.6]} 5...
Be4 {[%clk 0:02:47.6]} 6. f3 {[%clk 0:02:51.5]} 6... Bxb1 {[%clk 0:02:32.2]} 7.
Rxb1 {[%clk 0:02:49.6]} 7... Qa5+ {[%clk 0:02:13.6]} 8. Bd2 {[%clk 0:02:44.7]}
8... Qxa2 {[%clk 0:02:06.5]} 9. cxd5 {[%clk 0:02:44.8]} 9... Qxd5 {[%clk
0:01:59]} 10. Bc3 {[%clk 0:02:41.4]} 10... e6 {[%clk 0:01:52.3]} 11. e4 {[%clk
0:02:41.2]} 11... Qd8 {[%clk 0:01:51.3]} 12. Qb3 {[%clk 0:02:38.8]} 12... Qb6
{[%clk 0:01:45]} 13. Qxb6 {[%clk 0:02:28.2]} 13... axb6 {[%clk 0:01:45.9]} 14.
Be2 {[%clk 0:02:20.6]} 14... Be7 {[%clk 0:01:45.3]} 15. Ng2 {[%clk 0:02:18.9]}
15... O-O {[%clk 0:01:44]} 16. O-O {[%clk 0:02:18.4]} 16... Nbd7 {[%clk
0:01:37.2]} 17. Ne3 {[%clk 0:02:12.4]} 17... b5 {[%clk 0:01:34.8]} 18. Nc2
{[%clk 0:02:07.2]} 18... Rfd8 {[%clk 0:01:32.3]} 19. Ra1 {[%clk 0:02:00]} 19...
Nb6 {[%clk 0:01:30]} 20. b3 {[%clk 0:01:54.1]} 20... Ne8 {[%clk 0:01:14.4]} 21.
Ba5 {[%clk 0:01:51.1]} 21... Ra6 {[%clk 0:01:05.9]} 22. Nb4 {[%clk 0:01:40.3]}
22... Rxa5 {[%clk 0:01:02.4]} 23. Rxa5 {[%clk 0:01:35.3]} 23... Bxb4 {[%clk
0:01:02]} 24. Ra7 {[%clk 0:01:32.8]} 24... Rb8 {[%clk 0:00:50.7]} 25. f4 {[%clk
0:01:17.9]} 25... Nd6 {[%clk 0:00:48.2]} 26. Bf3 {[%clk 0:01:08.2]} 26... Ndc8
{[%clk 0:00:33.6]} 27. Ra2 {[%clk 0:01:05.9]} 27... h6 {[%clk 0:00:28.7]} 28.
Rfa1 {[%clk 0:01:05.1]} 28... Bc3 {[%clk 0:00:27.5]} 29. Rd1 {[%clk 0:01:03.4]}
29... Ne7 {[%clk 0:00:25]} 30. Ra7 {[%clk 0:01:00.5]} 30... Nbc8 {[%clk
0:00:21.9]} 31. Ra2 {[%clk 0:00:59]} 31... Nd6 {[%clk 0:00:22.2]} 32. Kf2 {[%clk
0:00:53.1]} 32... Rd8 {[%clk 0:00:21.9]} 33. Ke3 {[%clk 0:00:52.4]} 33... Ndc8
{[%clk 0:00:20.8]} 34. Ra8 {[%clk 0:00:51.3]} 34... Kf8 {[%clk 0:00:19.8]} 35.
Rd3 {[%clk 0:00:43.6]} 35... b4 {[%clk 0:00:19.4]} 36. Rb8 {[%clk 0:00:40.3]}
36... b6 {[%clk 0:00:15.2]} 37. g4 {[%clk 0:00:33.8]} 37... Ke8 {[%clk
0:00:15.2]} 38. f5 {[%clk 0:00:32.9]} 38... e5 {[%clk 0:00:11.4]} 39. d5 {[%clk
0:00:28.1]} 39... c5 {[%clk 0:00:07.1]} 40. Rd1 {[%clk 0:00:24.4]} 40... Kd7
{[%clk 0:00:05.6]} 41. h4 {[%clk 0:00:21.2]} 41... Kc7 {[%clk 0:00:05.2]} 42.
Ra8 {[%clk 0:00:20.7]} 42... Kb7 {[%clk 0:00:04.9]} 43. Ra2 {[%clk 0:00:20.4]}
43... Nd6 {[%clk 0:00:04.6]} 44. g5 {[%clk 0:00:20.1]} 44... hxg5 {[%clk
0:00:01.9]} 45. hxg5 {[%clk 0:00:21]} 45... Rh8 {[%clk 0:00:02.3]} 46. Rh1
{[%clk 0:00:20.9]} 46... Rxh1 {[%clk 0:00:01.7]} 47. Bxh1 {[%clk 0:00:21.8]}
47... Bd4+ {[%clk 0:00:02.2]} 48. Kf3 {[%clk 0:00:21.5]} 48... Nb5 {[%clk
0:00:03.1]} 49. Rh2 {[%clk 0:00:18.5]} 49... Nc3 {[%clk 0:00:01.7]} 50. Rh7
{[%clk 0:00:18.1]} 50... c4 {[%clk 0:00:01.5]} 51. bxc4 {[%clk 0:00:14.1]} 51...
b3 {[%clk 0:00:01.6]} 52. Rh2 {[%clk 0:00:13.2]} 1-0